Cogmind - Beta 14 @@@ ROGUE MODE // 2024.11.23 @ 23:59:47 Player: WazdakkaGutsmek Result: Destroyed by XG-8BY(R) with Subdweller Laser Performance ------------- Evolutions (0) 0 Regions Visited (2) 400 Robots Destroyed (31) 155 Value Destroyed (953) 953 Prototype IDs (0) 0 Alien Tech Used (0) 0 Bonus (0) 0 TOTAL SCORE: 1508 Bonus ------- None Cogmind --------- Core Integrity 0/250 Matter 201/300 Energy 98/100 System Corruption 0% Temperature Cool (6) Movement Core (50) Location -10/Subcaves Parts ------- > --- POWER (1) -------- (None) > --- PROPULSION (2) --- (None) > --- UTILITY (2) ------ (None) > --- WEAPON (2) ------- (None) > --- INVENTORY (5) ---- Light Ion Engine Assault Rifle Subdweller Machine Gun Light Cannon Scrap Shield Fragment (46) Peak State ------------ > --- POWER ------------ Subdweller Power Source > --- PROPULSION ------- Subdweller Monowheel Subdweller Monowheel > --- UTILITY ---------- Scrap Shield > --- WEAPON ----------- Battle Rifle Subdweller Machine Gun > --- INVENTORY -------- Light Ion Engine Assault Rifle Assault Rifle Light Cannon Scrap Shield Fragment [Rating: 14] Favorites ----------- Power Ion Engine Engine Ion Engine Propulsion Light Treads Treads Light Treads Leg Aluminum Leg Wheel Subdweller Monowheel Utility Scrap Shield Device Improved Heat Sink Storage Huge Storage Unit Protection Scrap Shield Weapon Light Cannon Energy Gun Heavy EM Pulse Gun Ballistic Gun Subdweller Machine Gun Ballistic Cannon Light Cannon Build | -11 -10 -10 ------- Run | Yrd Mat Sub Slots Evolved . | . . . Power . | . . . Propulsion . | . . . Utility . | . . . Weapon . | . . . Parts Attached 26 | . 12 14 Power 1 | . . 1 Engine 1 | . . 1 Core . | . . . Reactor . | . . . Propulsion 5 | . 2 3 Treads 2 | . 2 . Leg . | . . . Wheel 3 | . . 3 Hover . | . . . Flight . | . . . Utility 11 | . 5 6 Device 2 | . 2 . Storage 2 | . 2 . Processor . | . . . Hackware . | . . . Protection 7 | . 1 6 Artifact . | . . . Weapon 9 | . 5 4 Energy Gun 3 | . 3 . Energy Cannon . | . . . Ballistic Gun 3 | . . 3 Ballistic Cannon 3 | . 2 1 Launcher . | . . . Special Weapon . | . . . Impact Weapon . | . . . Slashing Weapon . | . . . Piercing Weapon . | . . . Special Melee Weapon . | . . . Unidentified Prototypes . | . . . Parts Lost 6 | . 1 5 Power 1 | . . 1 Propulsion 2 | . . 2 Utility 2 | . . 2 Weapon 1 | . 1 . Highest Loss Streak 2 | . 1 2 To Critical Strikes . | . . . Average Slot Usage (%) 81 | . 97 68 Engine 8 | . 14 4 Treads 14 | . 24 7 Leg 1 | . 3 . Wheel 8 | . . 14 Device 4 | . 9 . Storage 6 | . 14 . Protection 8 | . 2 13 Energy Gun 8 | . 18 . Ballistic Gun 5 | . 4 5 Ballistic Cannon 13 | . 5 21 Peak Build Rating 14 | 6 12 14 Average Rating 9 | 6 9 9 On Entrance 6 | 6 6 7 Naked Turns 30 | . . 30 Heaviest Build 94 | 14 94 94 Greatest Support 40 | 20 40 40 Greatest Overweight (x) 2 | . 2 2 Average Overweight (x) . | . . . Largest Inventory Capacity 25 | 8 25 25 Average Capacity 10 | 8 16 5 Most Carried 9 | 6 9 5 Average Carried 5 | 6 6 4 Final Capacity 25 | 8 25 5 Final Carried 6 | 6 5 5 Class Distribution -------------------- 82% | Mutant 17% | Subdweller-Mutant Dominant Class ---------------- Mutant | -10/Materials Mutant | -10/Subcaves Resources | -11 -10 -10 ----------- Run | Yrd Mat Sub Matter Collected 1087 | 200 304 583 Remotely . | . . . Salvage Created 1055 | . 706 349 Parts 52 | . 39 13 Haulers Intercepted 2 | . 2 . Recyclers Shooed 1 | . 1 . Parts Field Recycled . | . . . Retrieved Matter . | . . . Parts Self-Destructed 9 | . . 9 Prevented . | . . . Kills | -11 -10 -10 ------- Run | Yrd Mat Sub Combat Hostiles Destroyed 25 | . 12 13 Guns 12 | . 11 1 Cannons 12 | . . 12 AOE 1 | . 1 . Classes Destroyed 6 | . 5 1 Hauler 2 | . 2 . Recycler 1 | . 1 . Watcher 3 | . 3 . Swarmer 3 | . 3 . Grunt 9 | . 9 . Subdweller 13 | . . 13 Best Kill Streak 4 | . 4 2 Combat Bots Only 2 | . 2 2 Max Kills in Single Turn 1 | . 1 1 Gunslinging . | . . . Exploded 1 | . 1 . Melee . | . . . Uniques/NPCs Destroyed . | . . . Combat | -11 -10 -10 -------- Run | Yrd Mat Sub Hostile Shots Fired 135 | . 41 94 Missed 39 | . 8 31 Damage Taken 1952 | . 428 1524 Core 267 | . 65 202 Absorbed by Shields . | . . . Core Remaining (%) 100 | 100 . . Volleys Fired 130 | . 56 74 Largest 2 | . 2 2 Hottest 90 | . 90 70 Shots Fired 258 | . 110 148 Gun 101 | . 84 17 Cannon 157 | . 26 131 Launcher . | . . . Special . | . . . Kinetic 204 | . 56 148 Thermal . | . . . Explosive . | . . . Electromagnetic 54 | . 54 . Robot Hit Streak 16 | . 5 16 Robot Miss Streak 4 | . 4 3 Penetration Max . | . . . Secondary Targets 1 | . 1 . Max Gunslinging Chain 1 | . 1 . Shots Hit Robots 128 | . 46 82 Core Hits 51 | . 27 24 Critical Kills 1 | . 1 . Critical Parts Destroyed . | . . . Critical Strikes 4 | . 3 1 Destroy 1 | . 1 . Blast 1 | . . 1 Corrupt 2 | . 2 . Melee Attacks . | . . . Impact . | . . . Slashing . | . . . Piercing . | . . . Sneak Attacks . | . . . Combat Hostiles . | . . . Follow-up Attacks . | . . . Damage Inflicted 2255 | . 818 1437 Guns 887 | . 731 156 Cannons 1281 | . . 1281 Explosions 86 | . 86 . Melee . | . . . Ramming 1 | . 1 . Kinetic 1672 | . 235 1437 Thermal 86 | . 86 . Explosive . | . . . Electromagnetic 496 | . 496 . Impact . | . . . Slashing . | . . . Piercing . | . . . Highest Corruption . | . . . Average Corruption . | . . . Corruption Purged . | . . . Corruption Blocked . | . . . Overload Shots . | . . . Overflow Damage . | . . . Projectiles . | . . . Explosions . | . . . Melee . | . . . Knockbacks 13 | . . 13 Impact . | . . . Kinetic 11 | . . 11 Secondary 2 | . . 2 Self-Inflicted Damage 36 | . 36 . Shots 1 | . 1 . Rammed 1 | . 1 . Targets Rammed 1 | . 1 . Kicked . | . . . Crushed . | . . . Highest Temperature 216 | . 216 10 Average Temperature 70 | . 71 10 Received Heat Transfer 519 | . 204 315 Siege Activations . | . . . Robots Corrupted . | . . . Combat Hostiles . | . . . Parts Fried 1 | . 1 . Impact Corruptions . | . . . Robots Melted . | . . . Combat Hostiles . | . . . Parts Melted . | . . . Heat Transferred 100 | . 100 . Parts Sabotaged . | . . . Parts Stolen . | . . . Parts Stripped . | . . . Power Chain Reactions 2 | . 2 . Alert | -11 -10 -10 ------- Run | Yrd Mat Sub Peak Influence 295 | . 295 . Initial . | . . . Average 97 | . 98 . Maximum Alert Level 1 | . 1 . Low Security (%) 89 | 100 88 . Level 1 10 | . 11 . Level 2 . | . . . Level 3 . | . . . Level 4 . | . . . Level 5 . | . . . High Security . | . . . Max Security . | . . . Squads Dispatched 2 | . 2 . Investigation 1 | . 1 . Extermination . | . . . Reinforcement 1 | . 1 . Assault . | . . . Garrison . | . . . Intercept . | . . . Searches Triggered . | . . . Construction Impeded . | . . . Haulers Reinforced . | . . . Active Scanning Responses . | . . . Cargo Convoy Interrupts . | . . . Stealth | -11 -10 -10 --------- Run | Yrd Mat Sub Distress Signals 2 | . 2 . Communications Jammed . | . . . Distress Signals . | . . . Times Spotted 43 | . 16 27 Peak Tracking Total 11 | . 4 11 Tactical Retreats 1 | . 1 . Traps | -11 -10 -10 ------- Run | Yrd Mat Sub Traps Triggered 1 | . 1 . Indirectly . | . . . Trap Hack Attempts . | . . . Triggered . | . . . Disarmed . | . . . Reprogrammed . | . . . Reused . | . . . Traps Extracted . | . . . Installed . | . . . Triggered . | . . . Machines | -11 -10 -10 ---------- Run | Yrd Mat Sub Machines Disabled . | . . . Max in Single Turn . | . . . Machines Repaired . | . . . Machines Dismantled . | . . . Machines Sabotaged . | . . . Overloaded Fab Kills . | . . . Hacking | -11 -10 -10 --------- Run | Yrd Mat Sub Machines Accessed 8 | . 6 2 Terminals 6 | . 6 . Fabricators . | . . . Repair Stations . | . . . Recycling Units . | . . . Scanalyzers . | . . . Garrison Access . | . . . Total Hacks 15 | . 12 3 Successful 11 | . 8 3 Failed 4 | . 4 . Catastrophic . | . . . Database Lockouts . | . . . Manual 12 | . 12 . Terminals 12 | . 12 . Fabricators . | . . . Repair Stations . | . . . Recycling Units . | . . . Scanalyzers . | . . . Garrison Access . | . . . Terminal Hacks 4 | . 1 3 Record 1 | . . 1 Open Door 1 | . . 1 Terminal Index 1 | . 1 . Release Object 1 | . . 1 Fabricator Hacks . | . . . Repair Station Hacks . | . . . Recycling Unit Hacks . | . . . Scanalyzer . | . . . Garrison Access Hacks . | . . . Unauthorized Hacks 7 | . 7 . Terminals 7 | . 7 . Botnet 2 | . 2 . Skim 5 | . 5 . Fabricators . | . . . Repair Stations . | . . . Recycling Units . | . . . Scanalyzers . | . . . Garrison Access . | . . . Data Cores Recovered . | . . . Used . | . . . Hacking Detections 6 | . 6 . Full Trace Events . | . . . Feedback Events . | . . . Feedback Blocked . | . . . Robot Schematics Acquired . | . . . Robots Built . | . . . Authchips . | . . . Time . | . . . Total Robot Build Rating . | . . . Part Schematics Acquired . | . . . Parts Built . | . . . Authchips . | . . . Time . | . . . Total Part Build Rating . | . . . Parts Repaired . | . . . Time . | . . . Parts Recycled . | . . . Recycled Matter . | . . . Retrieved Matter . | . . . Retrieved Components . | . . . Parts Scanalyzed . | . . . Part Schematics Acquired . | . . . Parts Damaged . | . . . Bothacking | -11 -10 -10 ------------ Run | Yrd Mat Sub Used RIF Installer . | . . . Robots Hacked . | . . . Non-combat . | . . . Combat . | . . . Robot Hacks Applied . | . . . Relay Couplers Released . | . . . Fabnet Peak Effective % . | . . . Robots Rewired . | . . . Allies Hacked . | . . . Hacks Repelled . | . . . Allies | -11 -10 -10 -------- Run | Yrd Mat Sub Total Allies . | . . . Largest Group . | . . . Highest-Rated Group . | . . . Highest-Rated Ally . | . . . Total Orders . | . . . Ally Attacks . | . . . Total Damage . | . . . Kills . | . . . Allies Corrupted . | . . . Allies Melted . | . . . Intel | -11 -10 -10 ------- Run | Yrd Mat Sub Robot Analysis Total . | . . . Derelict Logs Recovered 1 | . . 1 Drone Launches . | . . . Drone Recoveries . | . . . Exploration | -11 -10 -10 ------------- Run | Yrd Mat Sub Turns Passed 2658 | 10 1231 1417 Spaces Moved 1464 | 9 505 950 Core 61 | . . 61 Treads 536 | . 397 139 Legs 117 | 9 108 . Wheels 750 | . . 750 Hover . | . . . Flight . | . . . Fastest Speed 50 | 120 120 50 Average Speed 144 | 120 191 120 Slowest Speed 320 | 120 320 320 Overloaded Moves . | . . . Propulsion Burnouts . | . . . Robots Hopped . | . . . Cave-ins Triggered . | . . . Exploration Rate (%) 47 | 2 80 60 Regions Visited 2 Branch Regions 1 Pre-discovered Areas . | . . . Known Exits Taken 1 | . 1 . Unknown Exits Taken 1 | 1 . . Scrap Searched . | . . . Spaces Dug . | . . . Terrain Destroyed 6 | . 6 . Melee . | . . . Projectile . | . . . AOE 6 | . 6 . Terrain Rammed . | . . . Walls Destroyed . | . . . Machines Disabled . | . . . Actions | -11 -10 -10 --------- Run | Yrd Mat Sub Total 1751 | 8 664 1079 Wait 85 | . 70 15 Move 1462 | 8 504 950 Hop . | . . . Pick Up 14 | . 9 5 Fast Attach 8 | . 1 7 Attach 10 | . 6 4 Detach 2 | . . 2 Swap 8 | . 5 3 Drop 23 | . 12 11 Fire 130 | . 56 74 Melee . | . . . Ram . | . . . Kick . | . . . Crush 1 | . 1 . Escape Stasis . | . . . Rewire . | . . . Trap . | . . . Miscellaneous 8 | . . 8 Route ------- -11/Scrapyard -10/Materials (discovered 5 exits: *Mat x3 / [*Min] / *Sub) -10/Subcaves History --------- Turn | Location | Event 1 | -11/Scrapyard | Discovered new exit (range 2) 11 | -11/Scrapyard | Entered Materials 236 | -10/Materials | Discovered new exit (range 7) 314 | -10/Materials | Build established: Mutant 369 | -10/Materials | Discovered new exit (range 9) 460 | -10/Materials | Discovered new exit (range 10) 472 | -10/Materials | Learned location of 1 exit from Recycling 509 | -10/Materials | Loaded intel: 6 trap records 535 | -10/Materials | Identified exit to Subcaves 552 | -10/Materials | Learned 2 Storage zone layouts 558 | -10/Materials | Learned 4 Subcaves zone layouts 564 | -10/Materials | Learned 4 Subcaves zone layouts 577 | -10/Materials | Identified exit to Materials 577 | -10/Materials | Learned location of 1 exit from Materials 600 | -10/Materials | Learned location of 1 exit from Storage 1242 | -10/Materials | Entered Subcaves 1449 | -10/Subcaves | Ambushed by swarm of Subdwellers 1750 | -10/Subcaves | A swath of the cavern ceiling suddenly collapsed 1873 | -10/Subcaves | A swath of the cavern ceiling suddenly collapsed 1925 | -10/Subcaves | Shifting Twisted Machinery released Sub. Optics 1940 | -10/Subcaves | Shifting Twisted Machinery released Barrage Gun 2283 | -10/Subcaves | Core integrity fell below 50% 2464 | -10/Subcaves | Build established: Subdweller-Mutant 2476 | -10/Subcaves | Shifting Twisted Machinery released Battle Rifle 2480 | -10/Subcaves | Shifting Twisted Machinery released Sub. Machine Gun 2626 | -10/Subcaves | Ambushed by Subdweller buried in earth 2626 | -10/Subcaves | Ambushed by Subdweller buried in earth 2628 | -10/Subcaves | Core integrity fell below 20% 2629 | -10/Subcaves | Released all parts (5) 2659 | -10/Subcaves | Destroyed by XG-8BY(R) with Subdweller Laser Last Messages --------------- 02443_ Acquired Sub. Power Source. Battle Rifle falls loose from the Twisted Machinery. Sub. Machine Gun falls loose from the Twisted Machinery. 02506_ Dropped Sub. Machine Gun. 02507_ Dropped Lgt. Cannon. 02508_ Acquired Sub. Machine Gun. 02520_ Dropped Assault Rifle. 02520_ Acquired Sub. Machine Gun. 02575_ Acquired 12 matter. 02589_ Acquired 9 matter. 02591_ Acquired 8 matter. 02627_ HG-6ZS(R): "ARGHSUB!" 02627_ XG-8BY(R): "ARGHSUB!" 02627_ Scrap Shield destroyed. 02629_ Released Sub. Machine Gun. 02629_ Released Sub. Monowheel. 02629_ Released Sub. Power Source. 02629_ Released Battle Rifle. Map ----- +----------------------------------------------------+ | ?????????????????????????## #????????????? | | ?????????????????????????# #????????????? | | ?????????????????????????###" "##????????????? | | ???????????????????????????#" = #????????????? | | ???????????????????????????# =[[ #????????????? | | ???????????????????????????# " * ##????????????? | | ???????????????????????????### ""######????????? | | ???????????????????????###?## ##???????? | | ?????????????????????### ### % ##??????? | | ????????????????????## #??????? | | ?????##???????????### % #??????? | | ?????# ##????????## #??????? | | ?????# #????###?# ## #??????? | | ?????# ##??## ######## % #??????? | | ?????## #### ##????### #??????? | | ??????## ##?????## R ##??????? | | ???????# ##????#; ###???????? | | ??????# ## #???## ##????####?? | | ?????# #### ##### ## ##????## #?? | | ?????# ##??## ## R ####?????# ### | | ?????# #????# R #????????# | | ????# #???## ##???##### | | ????# ???# ##### ##?## * | | ????## ## #?### ### | | ?????## #### ### ## | | ??????## ##??## @ ### | | ???????## ##????## ##?# | | ????????##### ###??????# ## ### #?# | | ????????????###?????????# ### #?# ## | | ????????????????????????###?## #?# | | ?????????????????????????????##??### ## | | ???????????????????????????????????# ### #? | | ???????????????????????????????????#### #?####? | | ??????????????????????????????????????## ##????# | | ???????????????????????????????????????# ##???# | | ???????????????????????????????????????# ##??# | | ???????????????????????????????????????# #??# | | ???????????????????????????????????????# #??# | | ???????????????????????????????????????## ## ##??? | | ????????????????????????????????????????######???? | | ?????????????????????????????????????????????????? | | ?????????????????????????????????????????????????? | | ?????????????????????????????????????????????????? | | ?????????????????????????????????????????????????? | | ?????????????????????????????????????????????????? | | ?????????????????????????????????????????????????? | | ?????????????????????####????????????????????????? | | ????????????????###??# ######???????????????????? | | ???????????????? ##?# #???????????????????? | | ???????????????? ### #???????????????????? | +----------------------------------------------------+ Best States ------------- Heat Dissipation 39 Energy Generation 15 Energy Capacity 250 Matter Stores 300 Matter Capacity 300 Sight Range 16 Terrain Scan Density 10 Armor Coverage 800 Evasion (%) 55 Recoil Reduction 2 Item Schematics ----------------- None Robot Schematics ------------------ None Fabricated ------------ Nothing Alien Tech Used ----------------- None Achievements -------------- None Challenges ------------ None Game ------ Seed PitchforkFieldShearcannon Manual? 0 Play Time 00:17:37 Cumulative 144.0 hours Start 2024.11.23 @ 23:40:14 End 2024.11.23 @ 23:59:47 Sessions 1 Manual Loads 0 Difficulty Rogue Special Mode None Game No. 125 Rogue 106 Adventurer 16 Explorer 3 Win Type - Total 10 Types 8/0/1/1/0/0/0/0/0 Lore% 30 Gallery% 67 Achievement% 59 Wizard Run 0 Options --------- Layout 2 ASCII 0 Keyboard 0 Movement Numpad Keybinds 1 Fullscreen 1 Font 24/Terminus Map View 50x44 Zoom Use 0% Tactical HUD 1 Map Filters NONE Filters NONE Steam 1 RUN: 9c3aaa6f-ace7-486d-bcf3-c8dff2654c74